Cogmind - Beta 14 @@@ ROGUE MODE // 2024.10.07 @ 16:02:12 Player: anastasia Result: Destroyed by as-79294 with Assembled Heavy Rifle Performance ------------- Evolutions (0) 0 Regions Visited (4) 800 Robots Destroyed (21) 105 Value Destroyed (464) 464 Prototype IDs (1) 20 Alien Tech Used (0) 0 Bonus (113) 113 TOTAL SCORE: 1502 Bonus ------- Follower Combat Kills 113 Cogmind --------- Core Integrity 0/250 Matter 204/300 Energy 250/250 System Corruption 0% Temperature Cool (0) Movement Core (500) Ox9 Location -9/Mines Parts ------- > --- POWER (1) -------- Ion Engine > --- PROPULSION (2) --- (None) > --- UTILITY (2) ------ Large Storage Unit > --- WEAPON (2) ------- Grenade Launcher > --- INVENTORY (15) --- Light Ion Engine Improved Heat Sink EM Pulse Gun Assault Rifle Light Assault Rifle Peak State ------------ > --- POWER ------------ Ion Engine > --- PROPULSION ------- Light Treads Light Treads > --- UTILITY ---------- Large Storage Unit Splice Drone Bay > --- WEAPON ----------- Assault Rifle Light Assault Rifle > --- INVENTORY -------- Light Ion Engine Light Treads Improved Heat Sink EM Pulse Gun Assault Rifle Grenade Launcher [Rating: 13] Favorites ----------- Power Ion Engine Engine Ion Engine Propulsion Light Treads Treads Light Treads Utility Large Storage Unit Device Splice Drone Bay Storage Large Storage Unit Processor Signal Interpreter Weapon Assault Rifle Energy Gun Medium Laser Ballistic Gun Assault Rifle Launcher Grenade Launcher Build | -11 -10 -10 -10 -9 ------- Run | Yrd Mat Min Exi Min Slots Evolved . | . . . . . Power . | . . . . . Propulsion . | . . . . . Utility . | . . . . . Weapon . | . . . . . Parts Attached 18 | 7 7 2 . 2 Power 3 | 1 2 . . . Engine 3 | 1 2 . . . Core . | . . . . . Reactor . | . . . . . Propulsion 4 | 2 . 1 . 1 Treads 4 | 2 . 1 . 1 Leg . | . . . . . Wheel . | . . . . . Hover . | . . . . . Flight . | . . . . . Utility 4 | 1 2 1 . . Device 1 | . . 1 . . Storage 2 | 1 1 . . . Processor 1 | . 1 . . . Hackware . | . . . . . Protection . | . . . . . Artifact . | . . . . . Weapon 7 | 3 3 . . 1 Energy Gun 2 | 2 . . . . Energy Cannon . | . . . . . Ballistic Gun 3 | 1 2 . . . Ballistic Cannon . | . . . . . Launcher 2 | . 1 . . 1 Special Weapon . | . . . . . Impact Weapon . | . . . . . Slashing Weapon . | . . . . . Piercing Weapon . | . . . . . Special Melee Weapon . | . . . . . Unidentified Prototypes 1 | . . 1 . . Parts Lost 6 | . 1 . . 5 Power 1 | . 1 . . . Propulsion 3 | . . . . 3 Utility 1 | . . . . 1 Weapon 1 | . . . . 1 Highest Loss Streak 5 | . 1 . . 5 To Critical Strikes 1 | . . . . 1 Average Slot Usage (%) 97 | . 95 100 100 92 Engine 13 | . 13 14 14 14 Treads 27 | . 28 28 28 24 Device 7 | . . 13 14 11 Storage 14 | . 14 14 14 14 Processor 4 | . 10 . . . Energy Gun 2 | . 6 . . . Ballistic Gun 24 | . 21 28 28 22 Peak Build Rating 13 | 6 7 13 13 13 Average Rating 9 | 4 6 12 13 11 On Entrance 7 | . 6 7 13 13 Naked Turns . | . . . . . Heaviest Build 36 | 12 28 36 36 36 Greatest Support 40 | 40 40 40 40 40 Greatest Overweight (x) 1 | . . . . 1 Average Overweight (x) . | . . . . . Largest Inventory Capacity 15 | 8 15 15 15 15 Average Capacity 14 | 7 13 15 15 15 Most Carried 7 | 2 6 7 6 6 Average Carried 4 | . 3 6 6 5 Final Capacity 15 | 8 15 15 15 15 Final Carried 6 | 1 6 6 6 5 Class Distribution -------------------- 100% | Mutant Dominant Class ---------------- Mutant | -10/Materials Mutant | -10/Mines Mutant | -10/Exiles Mutant | -9/Mines Resources | -11 -10 -10 -10 -9 ----------- Run | Yrd Mat Min Exi Min Matter Collected 613 | 180 240 92 . 101 Remotely . | . . . . . Salvage Created 700 | . 460 45 . 195 Parts 43 | . 31 3 . 9 Haulers Intercepted 1 | . 1 . . . Recyclers Shooed 1 | . 1 . . . Parts Field Recycled . | . . . . . Retrieved Matter . | . . . . . Parts Self-Destructed . | . . . . . Prevented . | . . . . . Kills | -11 -10 -10 -10 -9 ------- Run | Yrd Mat Min Exi Min Combat Hostiles Destroyed 18 | . 12 1 . 5 Guns 14 | . 10 1 . 3 AOE 4 | . 2 . . 2 Classes Destroyed 8 | . 5 . . 3 Worker 1 | . . . . 1 Tunneler 1 | . 1 . . . Hauler 1 | . 1 . . . Recycler 2 | . . . . 2 Watcher 1 | . 1 . . . Swarmer 5 | . 3 . . 2 Grunt 10 | . 9 1 . . Assembled 3 | . . . . 3 Best Kill Streak 6 | . 4 1 . 6 Combat Bots Only 3 | . 3 1 . 3 Max Kills in Single Turn 2 | . 2 1 . 2 Gunslinging . | . . . . . Exploded 2 | . 2 . . 1 Melee . | . . . . . Uniques/NPCs Destroyed . | . . . . . Combat | -11 -10 -10 -10 -9 -------- Run | Yrd Mat Min Exi Min Hostile Shots Fired 135 | . 70 6 . 59 Missed 33 | . 19 2 . 12 Damage Taken 1327 | . 568 45 . 714 Core 262 | . 143 . . 119 Absorbed by Shields . | . . . . . Core Remaining (%) 100 | 100 . . . . Volleys Fired 84 | . 47 6 . 31 Largest 2 | . 2 2 . 2 Hottest 70 | . 70 40 . 50 Shots Fired 161 | . 90 12 . 59 Gun 152 | . 87 12 . 53 Cannon . | . . . . . Launcher 9 | . 3 . . 6 Special . | . . . . . Kinetic 136 | . 71 12 . 53 Thermal 16 | . 16 . . . Explosive 9 | . 3 . . 6 Electromagnetic . | . . . . . Robot Hit Streak 12 | . 8 8 . 12 Robot Miss Streak 4 | . 4 2 . 4 Penetration Max . | . . . . . Secondary Targets 2 | . 1 . . 1 Max Gunslinging Chain 1 | . 1 . . 1 Shots Hit Robots 92 | . 49 9 . 34 Core Hits 50 | . 29 5 . 16 Critical Kills . | . . . . . Critical Parts Destroyed . | . . . . . Critical Strikes . | . . . . . Melee Attacks . | . . . . . Impact . | . . . . . Slashing . | . . . . . Piercing . | . . . . . Sneak Attacks . | . . . . . Combat Hostiles . | . . . . . Follow-up Attacks . | . . . . . Damage Inflicted 1494 | . 760 102 . 632 Guns 952 | . 545 93 . 314 Cannons . | . . . . . Explosions 523 | . 205 . . 318 Melee . | . . . . . Ramming 19 | . 10 9 . . Kinetic 814 | . 407 93 . 314 Thermal 138 | . 138 . . . Explosive 523 | . 205 . . 318 Electromagnetic . | . . . . . Impact . | . . . . . Slashing . | . . . . . Piercing . | . . . . . Highest Corruption . | . . . . . Average Corruption . | . . . . . Corruption Purged . | . . . . . Corruption Blocked . | . . . . . Overload Shots . | . . . . . Overflow Damage 13 | . . . . 13 Projectiles . | . . . . . Explosions 13 | . . . . 13 Melee . | . . . . . Knockbacks . | . . . . . Impact . | . . . . . Kinetic . | . . . . . Secondary . | . . . . . Self-Inflicted Damage 51 | . . . . 51 Shots 4 | . . . . 4 Rammed 6 | . 3 3 . . Targets Rammed 6 | . 3 3 . . Kicked . | . . . . . Crushed . | . . . . . Highest Temperature 159 | . 159 6 . . Average Temperature 41 | . 42 6 . . Received Heat Transfer 360 | . 276 24 . 60 Siege Activations . | . . . . . Robots Corrupted . | . . . . . Combat Hostiles . | . . . . . Parts Fried . | . . . . . Impact Corruptions . | . . . . . Robots Melted . | . . . . . Combat Hostiles . | . . . . . Parts Melted 1 | . 1 . . . Heat Transferred 407 | . 407 . . . Parts Sabotaged . | . . . . . Parts Stolen . | . . . . . Parts Stripped . | . . . . . Power Chain Reactions . | . . . . . Alert | -11 -10 -10 -10 -9 ------- Run | Yrd Mat Min Exi Min Peak Influence 213 | . 213 86 . 52 Initial 24 | . . 24 . . Average 73 | . 87 70 . 23 Maximum Alert Level 1 | . 1 . . . Low Security (%) 98 | 100 97 100 . 100 Level 1 1 | . 2 . . . Level 2 . | . . . . . Level 3 . | . . . . . Level 4 . | . . . . . Level 5 . | . . . . . High Security . | . . . . . Max Security . | . . . . . Squads Dispatched 2 | . 2 . . . Investigation 2 | . 2 . . . Extermination . | . . . . . Reinforcement . | . . . . . Assault . | . . . . . Garrison . | . . . . . Intercept . | . . . . . Searches Triggered . | . . . . . Construction Impeded . | . . . . . Haulers Reinforced . | . . . . . Active Scanning Responses . | . . . . . Cargo Convoy Interrupts . | . . . . . Stealth | -11 -10 -10 -10 -9 --------- Run | Yrd Mat Min Exi Min Distress Signals . | . . . . . Communications Jammed . | . . . . . Distress Signals . | . . . . . Times Spotted 32 | . 17 2 . 13 Peak Tracking Total 4 | . 3 2 . 4 Tactical Retreats 1 | . . . . 1 Traps | -11 -10 -10 -10 -9 ------- Run | Yrd Mat Min Exi Min Traps Triggered 2 | . 2 . . . Indirectly . | . . . . . Trap Hack Attempts . | . . . . . Triggered . | . . . . . Disarmed . | . . . . . Reprogrammed . | . . . . . Reused . | . . . . . Traps Extracted . | . . . . . Installed . | . . . . . Triggered . | . . . . . Machines | -11 -10 -10 -10 -9 ---------- Run | Yrd Mat Min Exi Min Machines Disabled 1 | . 1 . . . Max in Single Turn 1 | . 1 . . . Machines Repaired . | . . . . . Machines Dismantled . | . . . . . Machines Sabotaged . | . . . . . Overloaded Fab Kills . | . . . . . Hacking | -11 -10 -10 -10 -9 --------- Run | Yrd Mat Min Exi Min Machines Accessed 10 | . 5 1 4 . Terminals 5 | . 5 . . . Fabricators . | . . . . . Repair Stations . | . . . . . Recycling Units . | . . . . . Scanalyzers . | . . . . . Garrison Access . | . . . . . Total Hacks 11 | . 6 1 4 . Successful 9 | . 4 1 4 . Failed 2 | . 2 . . . Catastrophic 2 | . 2 . . . Database Lockouts . | . . . . . Manual . | . . . . . Terminals 6 | . 6 . . . Fabricators . | . . . . . Repair Stations . | . . . . . Recycling Units . | . . . . . Scanalyzers . | . . . . . Garrison Access . | . . . . . Terminal Hacks 9 | . 4 1 4 . Record 4 | . . . 4 . Open Door 1 | . . 1 . . Alert Level 1 | . 1 . . . Locate Traps 1 | . 1 . . . Zone Layout 2 | . 2 . . . Fabricator Hacks . | . . . . . Repair Station Hacks . | . . . . . Recycling Unit Hacks . | . . . . . Scanalyzer . | . . . . . Garrison Access Hacks . | . . . . . Unauthorized Hacks . | . . . . . Terminals . | . . . . . Fabricators . | . . . . . Repair Stations . | . . . . . Recycling Units . | . . . . . Scanalyzers . | . . . . . Garrison Access . | . . . . . Data Cores Recovered . | . . . . . Used . | . . . . . Hacking Detections 2 | . 2 . . . Full Trace Events . | . . . . . Feedback Events . | . . . . . Feedback Blocked . | . . . . . Robot Schematics Acquired . | . . . . . Robots Built . | . . . . . Authchips . | . . . . . Time . | . . . . . Total Robot Build Rating . | . . . . . Part Schematics Acquired . | . . . . . Parts Built . | . . . . . Authchips . | . . . . . Time . | . . . . . Total Part Build Rating . | . . . . . Parts Repaired . | . . . . . Time . | . . . . . Parts Recycled . | . . . . . Recycled Matter . | . . . . . Retrieved Matter . | . . . . . Retrieved Components . | . . . . . Parts Scanalyzed . | . . . . . Part Schematics Acquired . | . . . . . Parts Damaged . | . . . . . Bothacking | -11 -10 -10 -10 -9 ------------ Run | Yrd Mat Min Exi Min Used RIF Installer . | . . . . . Robots Hacked . | . . . . . Non-combat . | . . . . . Combat . | . . . . . Robot Hacks Applied . | . . . . . Relay Couplers Released . | . . . . . Fabnet Peak Effective % . | . . . . . Robots Rewired . | . . . . . Allies Hacked . | . . . . . Hacks Repelled . | . . . . . Allies | -11 -10 -10 -10 -9 -------- Run | Yrd Mat Min Exi Min Total Allies 2 | . . . . 2 Largest Group 1 | . . . . 1 Highest-Rated Group 31 | . . . . 31 Highest-Rated Ally 31 | . . . . 31 Total Orders 1 | . . 1 . . RETURN 1 | . . 1 . . Ally Attacks 17 | . . 3 . 14 Total Damage 115 | . . 5 . 110 Kills 3 | . . 1 . 2 Allies Corrupted . | . . . . . Allies Melted . | . . . . . Intel | -11 -10 -10 -10 -9 ------- Run | Yrd Mat Min Exi Min Robot Analysis Total . | . . . . . Derelict Logs Recovered 3 | . . 3 . . Drone Launches 16 | . . 7 . 9 Drone Recoveries 13 | . . 7 . 6 Exploration | -11 -10 -10 -10 -9 ------------- Run | Yrd Mat Min Exi Min Turns Passed 2182 | 74 905 329 743 131 Spaces Moved 1175 | 40 458 187 465 25 Core 2 | 2 . . . . Treads 1173 | 38 458 187 465 25 Legs . | . . . . . Wheels . | . . . . . Hover . | . . . . . Flight . | . . . . . Fastest Speed 50 | 50 160 160 160 160 Average Speed 160 | 154 160 160 160 176 Slowest Speed 240 | 160 160 160 160 240 Overloaded Moves . | . . . . . Propulsion Burnouts . | . . . . . Robots Hopped . | . . . . . Cave-ins Triggered . | . . . . . Exploration Rate (%) 43 | 4 80 44 79 11 Regions Visited 4 Branch Regions 3 Pre-discovered Areas 2 | . . 2 . . Known Exits Taken 1 | . 1 . . . Unknown Exits Taken 3 | 1 . 1 1 . Scrap Searched 1 | . . 1 . . Spaces Dug . | . . . . . Terrain Destroyed 59 | . 25 . . 34 Melee . | . . . . . Projectile . | . . . . . AOE 59 | . 25 . . 34 Terrain Rammed . | . . . . . Walls Destroyed . | . . . . . Machines Disabled . | . . . . . Actions | -11 -10 -10 -10 -9 --------- Run | Yrd Mat Min Exi Min Total 1319 | 49 544 204 464 58 Wait 22 | . 17 5 . . Move 1171 | 39 457 186 464 25 Hop . | . . . . . Pick Up 13 | 2 10 1 . . Fast Attach 6 | 6 . . . . Attach 5 | . 3 1 . 1 Detach 1 | . . 1 . . Swap 7 | 1 4 1 . 1 Drop 4 | 1 3 . . . Fire 84 | . 47 6 . 31 Melee . | . . . . . Ram . | . . . . . Kick . | . . . . . Crush 6 | . 3 3 . . Escape Stasis . | . . . . . Rewire . | . . . . . Trap . | . . . . . Miscellaneous . | . . . . . Route ------- -11/Scrapyard -10/Materials (discovered 4 exits: [*Mat x2] / *Min x2) -10/Mines -10/Exiles -9/Mines History --------- Turn | Location | Event 9 | -11/Scrapyard | Discovered new exit (range 16) 75 | -11/Scrapyard | Entered Materials 312 | -10/Materials | Build established: Mutant 620 | -10/Materials | Discovered new exit (range 16) 661 | -10/Materials | Discovered new exit (range 13) 678 | -10/Materials | Identified exit to Mines 770 | -10/Materials | Core integrity fell below 50% 890 | -10/Materials | Discovered exit to Mines (range 10) 922 | -10/Materials | Discovered new exit (range 3) 980 | -10/Materials | Entered Mines 985 | -10/Mines | Learned Materials terminal intel 989 | -10/Mines | Found the Drone Emporium 996 | -10/Mines | Found Prototype Device 998 | -10/Mines | Identified Splice Drone Bay 1069 | -10/Mines | Learned location of Storage (-9) 1296 | -10/Mines | Deemed a non-threat by the Exiles lab entrance 1296 | -10/Mines | Discovered new exit (range 5) 1309 | -10/Mines | Entered Exiles 1309 | -10/Exiles | Found Exiles lab abandoned 2039 | -10/Exiles | Discovered new exit (range 10) 2052 | -10/Exiles | Entered Mines 2053 | -9/Mines | Assembled infested the area 2111 | -9/Mines | Lost 3 allies 2170 | -9/Mines | Core integrity fell below 20% 2183 | -9/Mines | Destroyed by as-79294 with Assembled Heavy Rifle Last Messages --------------- 02161_ Splice Drone Bay destroyed. 02162_ K-01 Serf collects debris. 02163_ as-51595 destroyed. 02163_ Assault Rifle destroyed. 02163_ Destroyed Assault Rifle. 02163_ Seismic Survey Station disabled. 02165_ K-01 Serf collects debris. 02167_ Lgt. Treads destroyed. 02167_ K-01 Serf suffers critical hit (Destroy). 02167_ K-01 Serf destroyed. 02171_ K-01 Serf collects debris. 02175_ R-06 Scavenger collects Sml. Storage Unit. 02179_ K-01 Serf collects debris. 02179_ R-06 Scavenger collects Lgt. Ion Engine. 02180_ The unstable cave ceiling collapses. 02180_ K-01 Serf destroyed. 02181_ Lgt. Treads destroyed. 02182_ as-53416 destroyed. 02182_ R-06 Scavenger destroyed. Map ----- +----------------------------------------------------+ | ???????????????????????????????###????????????? | | ???????????????????????????????# ????????????? | | ???????????????????????????????# #????????????? | | ???????????????????????????????# #????????????? | | ???????????????????????????????# #????????????? | | ???????????????????????????????# #????????????? | | ?????????????????????????????### ##???????????? | | ????????????????????????????## ###?????????? | | ???????????????????????????## ##????????? | | ???????????????????????????## #????????? | | ??????????????????????????## #????????? | | ?????????????????????????## [ ##????????? | | ???????????????????????### % #????????? | | ???????????????????????# # #????????? | | ???????????????????????# =* ##????????? | | ???????????????????????## ! ##?????????? | | ???????????????????????# #] ####??????????? | | ???????????????????????##%*######?????????????? | | ???????????????????????## ##?????????#???????? | | ???????????????????????## #???????? #??????? | | ???????????????????????## ####### #??????? | | ???????????????????????## # #?????? | | ?????????????????????## # a #?????? | | ????????????????# ##### !%* # #??????? | | ????????????????# $ !% #???????? | | ????????????????# @ = #???????? | | ????????????????###### % # #??????? | | ????????????????????# ??????? | | ????????????????????# %* a ??????? | | ????????????????????# #% # # "" ??????? | | ????????????????????# ### """ ???????? | | ????????????????????##### ##???""" ?##???????? | | ???????????????????????? #????? ???????????? | | ???????????????????????####?????? ????????????? | | ??????????????????????????????????????????????? | | ??????????????????????????????????????????????? | | ??????????????????????????????????????????????? | | ??????????????????????????????????????????????? | | ??????????????????????????????????????????????? | | ??????????????????????????????????????????????? | | ??????????????????????????????????????????????? | | ??????????????????????????????????????????????? | | ??????????????????????????????????????????????? | | ??????????????????????????????????????????????? | | ??????????????????????????????????????????????? | | ??????????????????????????????????????????????? | | ??????????????????????????????????????????????? | | ??????????????????????????????????????????????? | | ??????????????????????????????????????????????? | | ??????????????????????????????????????????????? | +----------------------------------------------------+ Best States ------------- Heat Dissipation 25 Energy Generation 10 Energy Capacity 250 Matter Stores 300 Matter Capacity 300 Sight Range 16 Terrain Scan Density 10 Evasion (%) 40 Recoil Reduction 2 Item Schematics ----------------- None Robot Schematics ------------------ None Fabricated ------------ Nothing Alien Tech Used ----------------- None Achievements -------------- Factory Defaults Challenges ------------ None Game ------ Seed WarlordThermicFocus Manual? 0 Play Time 00:14:22 Cumulative 13.3 hours Start 2024.10.07 @ 15:49:31 End 2024.10.07 @ 16:02:12 Sessions 1 Manual Loads 0 Difficulty Rogue Special Mode None Game No. 24 Rogue 16 Adventurer 8 Explorer 0 Win Type - Total 0 Types 0/0/0/0/0/0/0/0/0 Lore% 11 Gallery% 19 Achievement% 18 Wizard Run 0 Options --------- Layout 1 ASCII 0 Keyboard 0 Movement Mouse Keybinds 0 Fullscreen 1 Font 32/SmallcapsGlow Map View 50x35 Zoom Use 0% Tactical HUD 1 Map Filters NONE Filters NONE Steam 1 RUN: bb0d4684-764e-45dc-91ad-3a4464cabb9c